bitfinex-derivatives/quotes_ETHF0:USTF0_20251024
["timestamp","ask_amount","ask_price","bid_price","bid_amount"]
[1761266856426,0.8083,3869.5,3869.4,0.5736]
[1761266856626,0.8083,3869.5,3869.4,0.7994]
[1761266857125,0.2365,3869.5,3869.4,0.7994]
[1761266857734,0.5823,3869.5,3869.4,0.7994]
[1761266858628,0.5823,3869.5,3869.2,4.075]
[1761266858629,0.3458,3869.4,3869.2,4.075]
[1761266858833,0.8083,3869.3,3869.2,4.6474]
[1761266859631,0.3458,3869.9,3869.3,0.3466]
[1761266859833,1.0379879,3869.8,3869.7,0.7994]
[1761266860135,0.8083,3869.8,3869.7,0.7994]
[1761266860337,0.8083,3869.8,3869.2,4.3008]
[1761266860338,0.3458,3869.7,3869.2,4.3008]
[1761266860538,0.2365,3869.3,3869.2,4.3008]
[1761266861134,0.5823,3869.3,3869.2,4.6474]
[1761266861836,0.8083,3869.3,3869.2,4.075]
[1761266864137,0.3458,3869.2,3868.9,0.7994]
[1761266864330,0.8083,3869.0,3868.9,0.7994]
[1761266866933,0.2365,3869.0,3868.9,0.7994]
[1761266867133,0.3458,3869.4,3868.9,0.4528]
[1761266867336,0.57609916,3869.3,3869.2,0.4528]
[1761266867537,1.03859916,3869.3,3869.2,0.7994]
[1761266867732,0.69279916,3869.3,3869.2,0.7994]
[1761266867931,1.03859916,3869.3,3869.2,0.7994]
[1761266870834,1.0391752,3869.3,3869.2,0.7994]
[1761266873143,0.6933752,3869.3,3868.7,0.80153042]
[1761266873335,0.8083,3868.8,3868.7,0.45493042]
[1761266873537,1.0391752,3868.8,3868.7,0.45493042]
[1761266873938,1.0391752,3868.8,3868.7,0.80153042]
[1761266875345,0.2308752,3868.8,3868.7,0.80153042]
[1761266875648,0.5823,3868.8,3868.7,0.45493042]
[1761266875846,0.8131752,3868.8,3868.7,0.45493042]
[1761266876040,0.8131752,3868.8,3868.7,0.80153042]
[1761266876235,1.0391752,3868.8,3868.7,0.80153042]
[1761266877556,0.8083,3868.8,3868.7,0.80153042]
[1761266878251,0.92874053,3869.1,3869.0,0.9294]
[1761266878552,1.15966967,3869.1,3869.0,0.9294]
[1761266878750,1.39616967,3869.1,3869.0,0.9294]
[1761266878949,1.74196967,3869.1,3869.0,0.9294]
[1761266879546,1.96796967,3869.1,3869.0,0.7994]
[1761266879743,1.62216967,3869.1,3869.0,0.9391]
[1761266879946,0.23092914,3869.1,3869.0,0.9391]
[1761266880242,0.23092914,3869.1,3869.0,1.69173059]
[1761266880549,1.50904053,3869.5,3869.4,0.3371]
[1761266880860,1.15962821,3869.5,3869.4,0.7928]
[1761266881152,1.16768768,3869.5,3869.4,0.3371]
[1761266881351,0.2358,3869.2,3869.1,0.3371]
[1761266881653,0.81118768,3869.2,3869.1,0.7928]
[1761266882254,0.46668768,3869.2,3869.1,0.7928]
[1761266882445,0.81118768,3869.2,3869.1,0.7928]
[1761266882756,0.46668768,3869.2,3869.1,0.7928]
[1761266883052,0.23088768,3869.2,3869.1,0.7928]
[1761266883253,0.23088768,3869.4,3869.1,0.4557]
[1761266883555,0.23088768,3869.3,3869.1,0.4557]
[1761266883755,0.23088768,3869.2,3869.1,0.4557]
[1761266884254,0.23088768,3869.4,3869.1,0.4557]
[1761266884455,0.23088768,3869.3,3869.2,0.7928]
[1761266884652,0.23088768,3869.4,3869.2,0.4557]
[1761266884952,0.23088768,3869.3,3869.2,0.4557]
[1761266885156,0.3445,3869.5,3869.2,0.4557]
[1761266885360,0.23090045,3869.4,3869.2,0.4557]
[1761266885655,0.23090045,3869.3,3869.2,0.4557]
[1761266885857,0.46670045,3869.3,3869.2,0.4557]
[1761266886153,0.46670045,3869.3,3868.7,0.6953902]
[1761266886154,0.7952,3868.8,3868.7,0.22693042]
[1761266886346,1.0261388,3868.8,3868.7,0.79493042]
[1761266886852,0.7952,3868.8,3868.7,0.79493042]
[1761266887657,1.02616824,3868.8,3868.7,0.79493042]
[1761266888352,1.02616824,3868.8,3868.7,0.22693042]
[1761266888551,0.3445,3868.3,3867.9,0.69325978]
[1761266888758,0.7952,3867.8,3867.7,0.7928]
[1761266889157,0.2358,3867.8,3867.7,1.54543059]
[1761266889457,0.7952,3868.1,3868.0,0.7928]
[1761266889658,1.02612119,3868.1,3868.0,0.7928]
[1761266889845,2.14694367,3868.6,3868.0,1.34803059]
[1761266889846,0.92954205,3868.6,3868.0,1.34803059]
[1761266890052,0.5803,3868.9,3868.8,0.7928]
[1761266890353,0.23087632,3868.9,3868.8,0.7928]
[1761266890555,0.92954205,3869.4,3868.8,0.7928]
[1761266890749,0.81118336,3869.3,3868.9,0.3371]
[1761266891054,1.72474205,3869.4,3869.3,0.7928]
[1761266891257,1.95562525,3869.4,3869.3,0.7928]
[1761266891457,1.95562525,3869.4,3869.3,0.4557]
[1761266892854,0.2308832,3869.4,3869.3,0.7928]
[1761266893056,0.2308832,3869.4,3869.0,0.1397]
[1761266893057,0.92954205,3869.9,3869.8,0.3371]
[1761266893358,0.23085042,3869.9,3869.8,0.7928]
[1761266893960,0.46665042,3869.9,3869.8,0.7928]
[1761266896357,0.00185333,3870.1,3870.0,0.9325]
[1761266896659,1.39431308,3870.5,3869.5,0.1397]
[1761266896660,0.2358,3869.7,3869.6,1.48477961]
[1761266896855,0.3445,3869.9,3869.5,0.1397]
[1761266896856,0.5803,3870.2,3869.9,0.3371]
[1761266897053,0.0358,3870.2,3870.1,0.7928]
[1761266897260,0.5803,3870.5,3870.4,0.2248]
[1761266897461,1.02898251,3870.5,3870.4,0.5619]
[1761266897957,0.7952,3870.2,3870.1,0.2248]
[1761266898159,0.4507,3869.6,3869.5,0.4557]
[1761266898456,0.2358,3869.6,3869.5,0.9325]
[1761266898763,0.2358,3869.7,3869.6,0.7928]
[1761266899056,0.4507,3870.0,3869.5,0.7016]
[1761266899258,0.2358,3869.3,3869.2,0.7928]
[1761266899658,0.7952,3869.3,3869.2,0.7928]
[1761266900353,0.3445,3869.8,3869.2,0.4557]
[1761266900557,0.23047097,3869.7,3869.3,0.3371]
[1761266900761,0.7952,3869.4,3869.3,0.3371]
[1761266900959,0.3445,3869.3,3869.1,0.3371]
[1761266901166,0.7952,3869.2,3869.1,0.5619]
[1761266902262,0.7952,3869.2,3869.1,0.2248]
[1761266902762,0.5594,3869.0,3868.9,0.5619]
[1761266902962,0.7952,3869.0,3868.9,0.5619]
[1761266903160,0.7952,3869.0,3868.9,0.7928]
[1761266903658,0.7952,3869.0,3868.9,0.5619]
[1761266903864,0.4507,3868.7,3868.6,0.5619]
[1761266904164,0.4507,3868.7,3868.6,0.7928]
[1761266904362,0.1416,3869.5,3868.6,0.7928]
[1761266904568,0.3445,3869.3,3868.7,0.3371]
[1761266904757,1.02571157,3869.2,3869.1,0.5619]
[1761266905263,0.3445,3869.6,3869.1,0.7928]
[1761266905457,0.46631316,3869.5,3869.4,0.7928]
[1761266905762,0.23051316,3869.5,3869.4,0.7928]
[1761266906060,0.23051316,3869.5,3869.0,0.1397]
[1761266906061,0.3445,3870.1,3869.6,0.3371]
[1761266906260,0.2304743,3870.0,3869.7,0.3371]
[1761266906452,1.51313122,3870.5,3870.4,0.5619]
[1761266906656,1.39907342,3870.5,3870.4,0.7928]
[1761266908356,1.96677342,3870.5,3870.4,0.7928]
[1761266910970,0.2242,3869.6,3869.5,0.9491]
[1761266911260,0.5462,3869.9,3869.8,0.4621]
[1761266911465,1.00440095,3869.9,3869.8,0.8094]
[1761266912074,0.452,3869.6,3869.5,0.5818]
[1761266912364,0.5462,3869.2,3869.1,0.3473]
[1761266912570,0.774,3869.2,3869.1,0.5818]
[1761266916966,0.452,3869.2,3869.1,0.8094]
[1761266917168,0.322,3869.7,3869.2,0.3473]
[1761266917470,0.452,3869.3,3869.2,0.8094]
[1761266917666,0.322,3869.2,3869.1,0.5818]
[1761266917865,0.5462,3869.2,3869.1,0.8094]
[1761266918065,0.2242,3869.2,3869.1,0.8094]
[1761266918670,0.92698581,3869.9,3869.7,0.4621]
[1761266918871,1.85152977,3870.6,3870.0,0.5818]
[1761266918872,0.774,3870.1,3870.0,0.5818]
[1761266919171,0.774,3869.7,3869.6,0.5818]
[1761266919570,0.5462,3870.1,3870.0,0.2345]
[1761266919765,1.00457348,3870.1,3870.0,0.8094]
[1761266919963,1.00457348,3870.1,3870.0,0.9402]
[1761266920379,1.00457348,3870.1,3870.0,0.8094]
[1761266920773,0.68257348,3870.1,3870.0,0.9402]
[1761266920968,0.23057348,3870.1,3870.0,0.9402]
[1761266921168,1.00457348,3870.1,3870.0,0.9402]
[1761266921477,0.45477348,3870.1,3870.0,0.9402]
[1761266921677,0.23057348,3870.1,3870.0,0.9402]
[1761266923872,0.322,3870.4,3870.1,0.3473]
[1761266924175,0.774,3870.2,3870.1,0.5818]
[1761266924368,1.00458303,3870.2,3870.1,0.5818]
[1761266924568,1.00458303,3870.2,3870.1,0.8094]
[1761266925070,0.774,3869.8,3869.7,0.5818]
[1761266925972,0.452,3869.8,3869.7,0.8094]
[1761266926273,0.2242,3869.8,3869.7,0.8094]
[1761266926771,0.774,3869.8,3869.7,0.8094]
[1761266927280,0.322,3869.7,3869.6,4.4298]
[1761266927571,0.322,3869.7,3869.6,0.5818]
[1761266927572,0.774,3869.7,3869.6,0.5818]
[1761266929365,0.322,3869.6,3869.3,0.5818]
[1761266929564,0.774,3869.4,3869.3,0.5818]
[1761266929969,0.2242,3869.0,3868.9,0.8094]
[1761266930164,0.774,3869.3,3869.2,0.2345]
[1761266930368,0.774,3869.3,3869.2,0.8094]
[1761266930568,0.452,3869.3,3869.2,0.8094]
[1761266931671,0.92698581,3869.8,3869.6,0.3473]
[1761266931873,0.2242,3869.9,3869.8,0.3473]
[1761266932074,0.45482697,3869.9,3869.8,0.8094]
[1761266932871,1.00462697,3869.9,3869.8,0.8094]
[1761266933270,0.68262697,3869.9,3869.8,0.8094]
[1761266935180,1.00462697,3869.9,3869.8,0.5818]
[1761266936272,0.774,3869.7,3869.6,0.5818]
[1761266936474,0.774,3869.7,3869.6,0.8094]
[1761266936779,0.452,3869.7,3869.6,0.8094]
[1761266937182,0.774,3870.0,3869.7,0.3473]
[1761266937375,0.45494736,3869.9,3869.8,0.8094]
[1761266937876,0.68274736,3869.9,3869.8,0.8094]
[1761266938078,0.322,3869.6,3869.3,4.4298]
[1761266938282,0.1399,3870.0,3869.3,4.3101]
[1761266938283,0.774,3869.4,3869.3,4.3101]
[1761266938479,0.452,3869.4,3869.3,4.3101]
[1761266938679,0.2242,3869.4,3869.3,4.3101]
[1761266938976,0.7686,3869.7,3869.6,0.7806]
[1761266939182,0.9993675,3869.7,3869.6,0.7806]
[1761266939574,0.9993675,3869.7,3869.6,0.5476]
[1761266940778,0.9993675,3869.7,3869.3,3.848]
[1761266940779,0.3425,3869.6,3869.3,4.3956]
[1761266940976,0.7951,3869.4,3869.3,4.3956]
[1761266941380,1.02591667,3869.4,3869.3,3.848]
[1761266941580,0.4526,3869.1,3869.0,0.6784]
[1761266941779,0.7951,3869.1,3869.0,0.6784]
[1761266942184,0.4526,3868.8,3868.6,0.91630682]
[1761266942483,1.02591955,3868.7,3868.6,0.5476]
[1761266942685,1.02591955,3868.7,3868.6,0.7806]
[1761266943375,0.7951,3868.7,3868.6,0.7806]
[1761266944385,0.92698581,3869.2,3868.7,0.3216]
[1761266944386,0.7951,3869.1,3868.7,0.3216]
[1761266944592,0.2306886,3869.0,3868.9,0.7806]
[1761266944789,1.72208581,3869.8,3869.7,0.7806]
[1761266944982,1.02573672,3869.8,3869.7,0.7806]
[1761266945487,1.95272253,3869.8,3869.7,0.5476]
[1761266945686,1.95272253,3869.8,3869.0,0.6061]
[1761266945687,0.2188,3869.4,3869.3,0.459]
[1761266945882,0.7951,3869.4,3869.3,0.459]
[1761266946188,1.02573672,3869.4,3869.3,0.459]
[1761266946389,1.02573672,3869.4,3869.3,0.7806]
[1761266946688,1.02288094,3869.4,3869.3,0.7806]
[1761266947290,1.37958581,3869.8,3869.4,0.3216]
[1761266947593,0.44656315,3869.7,3869.6,0.7806]
[1761266948790,1.02286315,3869.7,3869.6,0.7806]
[1761266948991,1.03344642,3869.7,3869.6,0.7806]
[1761266949285,1.03344642,3869.7,3869.6,0.5476]
[1761266949491,0.2188,3869.2,3869.1,0.459]
[1761266949690,0.5613,3869.6,3869.1,0.459]
[1761266949884,0.01058327,3869.4,3869.2,0.3216]
[1761266950088,0.22938327,3869.4,3869.3,0.7806]
[1761266950793,0.3425,3869.3,3869.0,4.3956]
[1761266951089,0.2188,3868.7,3868.6,0.459]
[1761266951592,0.2188,3868.7,3868.6,0.7806]
[1761266951988,0.22938327,3868.7,3868.6,0.7806]
[1761266952690,0.80568327,3868.7,3868.6,0.5476]
[1761266952993,0.80568327,3868.7,3868.6,0.7806]
[1761266953586,0.46318327,3868.7,3868.6,0.7806]
[1761266955396,0.22938327,3868.7,3868.6,0.7806]
[1761266956799,0.80568327,3868.7,3868.6,0.7806]
[1761266957186,0.46318327,3868.7,3868.6,0.7806]
[1761266957384,0.01058327,3868.7,3868.6,0.7806]
[1761266957591,0.01058327,3868.7,3868.6,1.47090682]
[1761266957989,0.01058327,3868.7,3868.6,0.7806]
[1761266962298,0.01058327,3868.7,3868.6,1.47090682]
[1761266963102,0.22938327,3868.7,3868.6,1.47090682]
[1761266963797,0.80568327,3868.7,3868.6,0.69030682]
[1761266963998,0.4526,3868.5,3868.4,4.6286]
[1761266964599,0.2188,3868.5,3868.4,4.6286]
[1761266965100,0.22938327,3868.5,3868.4,4.6286]
[1761266967993,0.22938327,3868.5,3868.0,1.05185074]
[1761266967994,0.80498327,3868.5,3868.0,1.40255074]
[1761266968202,0.7881,3867.8,3867.7,0.00313737]
[1761266968496,0.7881,3867.8,3867.5,0.3507]
[1761266968497,0.7881,3867.6,3867.5,0.7955]
[1761266968703,0.4463,3867.6,3867.5,1.77652145]
[1761266969091,0.45688327,3867.6,3867.5,1.77652145]
[1761266969297,0.46002353,3867.6,3867.5,1.77899479]
[1761266970400,0.92698581,3868.4,3867.5,1.42829479]
[1761266970601,0.98182897,3869.0,3868.9,0.5591]
[1761266970802,1.00729246,3869.0,3868.9,0.5591]
[1761266971001,1.00729246,3869.0,3868.5,0.135]
[1761266971002,0.2206,3868.7,3868.6,0.3315]
[1761266971301,0.4444,3868.7,3868.6,0.7946]
[1761266971507,0.44666539,3868.7,3868.6,0.7946]
[1761266972500,0.78196539,3868.7,3868.6,0.7946]
[1761266975009,0.44666539,3868.7,3868.6,0.7946]
[1761266975212,0.22286539,3868.7,3868.6,0.7946]
[1761266975706,0.44666539,3868.7,3868.6,0.7946]
[1761266975906,0.78196539,3868.7,3868.6,0.5591]
[1761266976306,0.78196539,3868.7,3868.6,0.7946]
[1761266976710,0.2206,3868.4,3868.3,0.3315]
[1761266977009,0.3353,3868.3,3868.1,0.5591]
[1761266977309,0.7797,3868.5,3868.4,0.7946]
[1761266977508,1.00442771,3868.5,3868.4,0.7946]
[1761266978404,1.00442988,3868.5,3868.4,0.7946]
[1761266978799,0.66912988,3868.5,3868.1,0.3315]
[1761266979002,0.7797,3868.2,3868.1,0.7946]
[1761266982111,0.7797,3868.2,3868.1,0.5591]
[1761266982305,0.7797,3868.2,3868.1,0.2276]
[1761266982707,0.7797,3868.5,3868.2,0.3315]
[1761266983008,1.00445486,3868.4,3868.3,0.7946]
[1761266983505,0.00226539,3868.7,3868.6,0.7946]
[1761266984707,0.22286539,3868.7,3868.6,0.7946]
[1761266985811,0.00226539,3868.7,3868.6,0.7946]
[1761266986414,0.22286539,3868.7,3868.6,0.7946]
[1761266988313,0.44666539,3868.7,3868.6,0.7946]
[1761266988702,0.22286539,3868.7,3868.6,0.7946]
[1761266988901,0.44666539,3868.7,3868.6,0.7946]
[1761266989607,0.78196539,3868.7,3868.6,0.7946]
[1761266989912,0.78196539,3868.7,3868.6,0.2276]
[1761266990116,0.3353,3868.6,3868.4,0.3315]
[1761266990302,0.7797,3868.5,3868.4,0.5591]
[1761266990706,0.9136,3868.5,3868.4,0.98040627]
[1761266991113,0.9136,3868.5,3868.4,1.31190627]
[1761266991815,0.7797,3868.5,3868.4,1.31190627]
[1761266996309,0.00226539,3868.7,3868.6,0.7946]
[1761266996816,0.22715952,3868.7,3868.6,0.7946]
[1761266997012,0.00226539,3868.7,3868.6,0.7946]
[1761266999612,0.92698581,3869.6,3869.5,0.4637]
[1761266999816,0.44468741,3869.6,3869.5,1.67120627]
[1761267000214,1.93717322,3869.6,3869.5,1.67120627]
[1761267000417,1.93717322,3869.6,3869.5,0.7833]
[1761267000619,1.93911382,3869.6,3869.5,0.7833]
[1761267000817,0.7853,3869.2,3869.1,0.4547]
[1761267001019,0.4498,3869.2,3869.1,0.4547]
[1761267001214,0.4498,3869.2,3869.1,1.20750627]
[1761267001510,0.4498,3869.2,3869.1,1.53610627]
[1761267002120,0.3355,3869.5,3869.1,1.20750627]
[1761267002421,0.44467284,3869.4,3869.3,0.7833]
[1761267002627,0.7853,3869.2,3869.1,0.5459]
[1761267002830,0.7853,3869.0,3868.9,0.2173]
[1761267003121,0.7853,3869.0,3868.9,0.5459]
[1761267004721,0.7853,3869.0,3868.9,0.7833]
[1761267007218,1.01485884,3869.0,3868.9,0.5459]
[1761267007413,0.67935884,3869.0,3868.6,0.3286]
[1761267007628,0.7853,3868.3,3868.2,0.4547]
[1761267008121,0.7853,3868.3,3868.2,0.7833]
[1761267008318,0.7853,3868.3,3868.2,0.5459]
[1761267009026,0.92698581,3868.7,3868.6,0.7833]
[1761267009229,1.14678581,3869.1,3869.0,0.9184]
[1761267009421,1.37635789,3869.1,3869.0,0.9184]
[1761267009926,0.44937208,3869.1,3869.0,0.9184]
[1761267010131,1.94185789,3869.1,3869.0,0.9184]
[1761267012228,1.01487208,3869.1,3869.0,0.9184]
[1761267012825,0.67937208,3869.1,3869.0,0.9184]
[1761267013133,0.67937208,3869.1,3869.0,1.67120627]
[1761267013134,0.22957208,3869.1,3869.0,1.67120627]
[1761267013330,1.39625368,3869.6,3869.0,1.67120627]
[1761267013331,0.2198,3869.5,3869.4,0.7833]
[1761267013533,1.01495994,3869.5,3869.4,0.7833]
[1761267013925,1.01495994,3869.5,3869.4,0.5459]
[1761267015132,1.01495994,3869.5,3869.4,0.7833]
[1761267015632,0.7853,3868.8,3868.7,0.5459]
[1761267015933,0.7853,3868.8,3868.7,0.7833]
[1761267016231,0.5553,3869.1,3869.0,0.9184]
[1761267016433,0.22963798,3869.1,3869.0,0.9184]
[1761267016731,0.44943798,3869.1,3869.0,0.9184]
[1761267018839,0.22963798,3869.1,3869.0,0.9184]
[1761267019035,1.39625368,3869.6,3869.0,0.9184]
[1761267019036,8.24239544,3873.6,3870.5,0.1351]
[1761267019230,1.8200433,3874.5,3873.5,3.76403135]
[1761267019433,1.8200433,3874.5,3870.9,11.62176]
[1761267019434,0.1354,3875.4,3874.4,3.76403135]
[1761267019630,0.75280627,3878.4,3874.4,3.76403135]
[1761267019631,0.022,3877.8,3875.3,1.50561254]
[1761267019935,1e-08,3876.0,3875.4,0.85330496]
[1761267020232,0.1354,3876.6,3875.8,3.65525943]
[1761267020422,0.1354,3876.6,3875.9,0.85330496]
[1761267020626,0.1354,3876.6,3876.2,3.19097943]
[1761267020822,0.1354,3876.6,3876.3,0.85330496]
[1761267021024,18.03576495,3877.6,3876.0,0.75280627]
[1761267021025,0.36030529,3877.6,3877.1,0.75280627]
[1761267021231,0.36030529,3877.5,3877.3,2.26459734]
[1761267021431,0.01287657,3877.4,3876.5,3.17043628]
[1761267021634,0.37318186,3877.4,3877.0,3.17043628]
[1761267021834,0.02575314,3877.2,3877.1,1.1084381]
[1761267022335,0.39580098,3877.2,3877.1,1.86124437]
[1761267022536,0.39580098,3877.2,3877.1,3.35820108]
[1761267022922,0.73130098,3877.2,3877.1,3.35820108]
[1761267023326,0.3355,3877.2,3877.1,3.60073384]
[1761267023533,0.38387226,3877.2,3877.1,3.60073384]
[1761267023837,0.39674883,3877.2,3877.1,3.60073384]
[1761267024233,0.40469071,3877.2,3877.1,3.60073384]
[1761267025128,0.40469071,3877.2,3877.1,5.83941027]
[1761267025535,0.40469071,3877.2,3877.1,3.60073384]
[1761267026240,0.36030529,3877.6,3877.1,8.60073384]
[1761267026534,0.36030529,3877.5,3877.4,2.23499579]
[1761267026734,0.36030529,3877.5,3877.4,3.34343389]
[1761267026925,0.36030529,3877.5,3877.4,1.1084381]
[1761267027535,5.0,3877.5,3877.4,0.92875672]
[1761267027837,5.0,3877.5,3876.5,1.78574003]
[1761267028036,5.0,3877.5,3876.0,2.49229574]
[1761267028037,0.02510745,3877.8,3876.4,1.78574003]
[1761267028226,7.6,3877.4,3877.0,0.66956625]
[1761267028541,1.8059,3877.3,3877.1,0.66956625]
[1761267028843,1.8059,3875.9,3875.3,0.00235462]
[1761267029042,2.7367,3875.4,3875.3,0.00235462]
[1761267030035,2.75177683,3875.4,3875.3,0.00235462]
[1761267030236,2.75177683,3875.4,3874.1,2.29229574]
[1761267030237,1.9527,3875.3,3874.1,2.29229574]
[1761267030432,0.03015366,3874.7,3874.1,2.29229574]
[1761267030637,1.98285366,3874.7,3874.1,2.29229574]
[1761267031337,1.9860868,3874.7,3874.1,2.29416109]
[1761267031539,0.03015366,3874.4,3874.1,2.29416109]
[1761267031737,1.98285366,3874.4,3874.1,2.29416109]
[1761267032534,0.03015366,3874.3,3874.1,0.00186535]
[1761267032740,1.98813264,3874.2,3874.1,0.00186535]
[1761267033144,0.03543264,3874.2,3874.1,0.00186535]
[1761267034146,0.03543264,3874.2,3874.1,0.46635535]
[1761267034944,0.00323314,3874.7,3874.1,5.00186535]
[1761267035154,0.00323314,3874.7,3874.6,2.49229574]
[1761267035540,0.00323314,3874.7,3874.6,2.95672574]
[1761267037043,1.9527,3875.2,3875.0,0.46438]
[1761267037242,1.9527,3875.2,3874.8,0.46441]
[1761267038040,1.95595533,3875.2,3874.8,0.46441]
[1761267038241,1.97021028,3875.0,3874.9,0.46439]
[1761267038643,1.98772056,3875.0,3874.9,0.46439]
[1761267039553,0.03502056,3875.0,3874.9,0.60535847]
[1761267039753,0.03502056,3875.0,3874.9,1.32978182]
[1761267039955,1.98772056,3875.0,3874.9,1.32978182]
[1761267040154,1.98772056,3875.0,3874.9,1.66618601]
[1761267040553,2.7367,3875.4,3874.9,6.20179601]
[1761267040749,1.9527,3875.8,3875.4,0.46433]
[1761267040943,1.9527,3875.8,3875.5,0.60528847]
[1761267041149,1.9527,3875.8,3875.6,0.14096847]
[1761267041353,1.9527,3875.8,3875.7,0.14096847]
[1761267041652,1.9527,3874.7,3874.3,2.49229574]
[1761267041862,1.9527,3874.7,3874.4,1.1919178]
[1761267042059,1.9527,3874.7,3874.5,0.14123621]
[1761267042252,1.9527,3874.7,3874.6,0.14123621]
[1761267043252,1.9527,3874.7,3874.6,0.47896754]
[1761267043452,1.9527,3874.7,3874.6,0.94339754]
[1761267044663,1.96610098,3874.7,3874.6,1.65629684]
[1761267044853,1.97280147,3874.7,3874.6,1.65629684]
[1761267045055,1.97280147,3874.7,3874.6,1.31856551]
[1761267045255,1.97280147,3874.7,3874.6,1.65676387]
[1761267045755,1.97950196,3874.7,3874.6,1.65676387]
[1761267046354,0.03350245,3874.7,3874.6,1.65676387]
[1761267046565,0.03350245,3874.7,3874.6,6.65676387]
[1761267046860,0.03543264,3874.7,3874.6,9.54931864]
[1761267048159,1.9527,3875.0,3874.9,0.4644]
[1761267048456,0.784,3875.4,3875.2,0.46435]
[1761267048663,0.784,3875.4,3875.3,2.5378373]
[1761267048860,0.00257921,3875.8,3875.4,0.48004]
[1761267049158,0.00257921,3875.8,3875.5,0.7128993]
[1761267049359,1.31487921,3875.8,3875.7,0.011]
[1761267049659,1.31487921,3875.8,3875.7,1.1991993]
[1761267049660,0.00257921,3875.8,3875.7,1.1991993]
[1761267049861,0.00257921,3875.8,3875.7,2.58340891]
[1761267050052,0.00257921,3875.8,3875.7,1.2148993]
[1761267050255,2.0963,3876.5,3876.4,0.022]
[1761267050453,4.049,3876.5,3876.4,0.7348993]
[1761267050863,1.9527,3876.9,3876.5,0.0157]
[1761267051060,1.9527,3876.9,3876.6,0.7128993]
[1761267051261,1.95455881,3876.9,3876.7,0.7128993]
[1761267051462,1.95455881,3876.9,3876.8,0.7128993]
[1761267051661,0.04490743,3878.2,3876.8,4.98987575]
[1761267051859,0.784,3879.0,3875.9,11.06099579]
[1761267051860,2.7367,3877.8,3877.7,2.89255477]
[1761267052163,2.7367,3877.8,3877.7,0.7128993]
[1761267052356,2.75709832,3877.8,3877.7,0.7128993]
[1761267052761,2.77400756,3877.8,3877.7,0.71531227]
[1761267053362,2.57400756,3877.8,3877.7,0.71531227]
[1761267054965,2.57400756,3877.8,3877.7,0.6565024]
[1761267055361,2.57400756,3877.8,3877.7,0.00241297]
[1761267055964,7.57400756,3877.8,3877.7,0.00241297]
[1761267056353,7.57400756,3877.8,3876.5,0.4642]
[1761267056354,2.7367,3876.6,3876.5,1.36872168]
[1761267056557,2.7367,3876.6,3876.5,0.6477582]
[1761267056764,2.77213264,3876.6,3876.5,0.6477582]
[1761267057160,0.81943264,3876.6,3876.5,0.64805651]
[1761267057363,0.81943264,3876.6,3876.5,0.65136507]
[1761267057866,2.77213264,3876.6,3876.5,0.65136507]
[1761267058569,2.78095843,3876.6,3876.5,0.65136507]
[1761267059068,2.78978422,3876.6,3876.5,0.65136507]
[1761267059565,2.79861001,3876.6,3876.5,0.65136507]
[1761267059872,2.8074358,3876.6,3876.5,0.65136507]
[1761267063060,1.8763,3875.9,3875.7,0.91114701]
[1761267063259,1.8763,3875.3,3874.9,0.91114701]
[1761267063460,1.8763,3875.3,3874.8,0.00783]
[1761267063972,0.7499,3875.4,3874.8,0.01091188]
[1761267063973,1.8763,3875.0,3874.8,0.01091188]
[1761267064270,1.87821039,3875.0,3874.8,0.01091188]
[1761267064662,0.7499,3874.2,3873.9,0.91114701]
[1761267064973,1.9470358,3874.1,3873.7,0.91114701]
[1761267065767,0.08509248,3873.9,3873.6,0.91114701]
[1761267065955,1.8763,3873.8,3873.7,0.91345628]
[1761267066360,1.97574916,3873.8,3873.7,0.00230927]
[1761267066966,1.98250031,3873.8,3873.7,0.00230927]
[1761267071180,1.8763,3872.9,3872.8,0.02582111]
[1761267072077,1.98250031,3872.9,3872.8,0.02582111]
[1761267072262,1.98250031,3872.9,3872.8,0.02786608]
[1761267072466,1.8763,3872.9,3872.8,0.02786608]
[1761267072774,1.99867784,3872.9,3872.8,0.02786608]
[1761267072974,2.01485537,3872.9,3872.8,0.02786608]
[1761267073372,1.8763,3872.3,3872.2,0.29258608]
[1761267074071,2.01485537,3872.3,3872.2,0.29258608]
[1761267074271,2.01485537,3872.3,3872.2,0.29469981]
[1761267074471,0.13855537,3872.3,3872.2,0.31149981]
[1761267074677,1.8763,3872.8,3872.4,0.4647]
[1761267074868,1.8763,3872.3,3872.2,0.00211373]
[1761267079074,1.89203056,3872.3,3872.2,0.01881373]
[1761267079276,0.01573056,3872.3,3872.2,0.05231373]
[1761267079572,1.8763,3872.3,3872.2,0.05231373]
[1761267079775,1.89989584,3872.3,3872.2,0.05231373]
[1761267079970,1.89989584,3872.3,3872.2,0.03551373]
[1761267080180,4.45759584,3872.3,3872.2,0.01881373]
[1761267080483,4.45759584,3872.3,3872.2,0.00211373]
[1761267080774,4.45759584,3872.3,3870.9,0.46487]
[1761267080775,2.6262,3871.0,3870.9,0.46487]
[1761267080981,0.7499,3871.5,3871.3,0.46482]
[1761267081172,0.7499,3871.5,3870.9,2.89255477]
[1761267081173,0.03546451,3871.4,3870.9,2.89255477]
[1761267081471,1.8763,3871.3,3870.9,2.89255477]
[1761267081671,2.6262,3871.0,3870.9,2.894402]
[1761267082076,2.66166451,3871.0,3870.9,2.894402]
[1761267084277,5.21936451,3871.0,3870.9,2.894402]
[1761267084670,5.21936451,3871.0,3870.9,2.911102]
[1761267085276,5.21936451,3871.0,3870.9,2.944602]
[1761267085277,0.03546451,3871.0,3870.9,2.944602]
[1761267085683,1.91176451,3871.0,3870.9,2.927802]
[1761267086584,2.68376063,3871.0,3870.9,2.927802]
[1761267086782,1.93386063,3871.0,3870.9,2.927802]
[1761267086976,0.00290184,3871.3,3871.0,0.46486]
[1761267087282,0.07092902,3871.0,3870.9,3.376082]
[1761267087484,2.45082902,3871.0,3870.9,3.359282]
[1761267088077,0.7149,3873.0,3870.9,7.894402]
[1761267088289,0.7149,3873.0,3872.2,0.46472]
[1761267088290,1.665,3872.4,3872.2,0.46472]
[1761267088786,2.3799,3871.0,3870.9,0.68362434]
[1761267088984,2.3799,3871.0,3870.9,0.46672723]